Cogmind - Beta 14 @@@ ROGUE MODE // 2024.08.18 @ 23:30:16 Player: ILikeVoltron Result: Destroyed self via exploding Power Conduit Performance ------------- Evolutions (3) 1500 Regions Visited (4) 800 Robots Destroyed (87) 435 Value Destroyed (2542) 2542 Prototype IDs (3) 60 Alien Tech Used (0) 0 Bonus (213) 213 TOTAL SCORE: 5550 Bonus ------- High Alert Combat Kills 213 Cogmind --------- Core Integrity 0/700 Matter 218/300 Energy 100/100 System Corruption 6% Temperature Cool (36) Movement Core (700) Ox13 Location -7/Factory Parts ------- > --- POWER (1) -------- (None) > --- PROPULSION (4) --- (None) > --- UTILITY (5) ------ High-capacity Storage Unit Machine Analyzer Advanced Visual Processing Unit > --- WEAPON (3) ------- (None) > --- INVENTORY (20) --- Large Storage Unit Medium Matter Pod (100) Structural Scanner Advanced Visual Processing Unit Improved Sensor Array Improved Terrain Scanner Improved Terrain Scanner Terrain Scan Processor Advanced Targeting Computer Hardened Light Armor Plating Improved Medium Armor Plating Layered Light Armor Plating Mining Laser Welding Torch Peak State ------------ > --- POWER ------------ Light Angular Momentum Engine > --- PROPULSION ------- Advanced Treads Carbon-fiber Leg VSS Leg Cooled Airjet > --- UTILITY ---------- Advanced Heat Sink Large Storage Unit Machine Analyzer Advanced Visual Processing Unit System Shield > --- WEAPON ----------- Advanced Beam Rifle High-powered Shotgun Gauss Cannon > --- INVENTORY -------- High-capacity Storage Unit High-capacity Matter Pod Improved Sensor Array Improved Terrain Scanner Improved Terrain Scanner Advanced Targeting Computer Hardened Light Armor Plating Hardened Light Armor Plating Hardened Light Armor Plating Minigun Minigun Rocket Launcher Mining Laser Axe [Rating: 48] Favorites ----------- Power Light Ion Engine Engine Light Ion Engine Power Core Micro Nuclear Core Propulsion Aluminum Leg Treads Advanced Treads Leg Aluminum Leg Wheel Wheel Hover Unit Cooled Airjet Utility Advanced Visual Processing Unit Device Improved Terrain Scanner Storage Large Storage Unit Processor Advanced Visual Processing Unit Hackware System Shield Protection Hardened Light Armor Plating Weapon High-powered Shotgun Energy Gun Advanced Beam Rifle Ballistic Gun High-powered Shotgun Ballistic Cannon Gauss Cannon Launcher Rocket Launcher Special Weapon Mining Laser Slashing Weapon Axe Build | -11 -10 -9 -8 -7 ------- Run | Yrd Mat Mat Mat Fac Slots Evolved 6 | . . 2 2 2 Power . | . . . . . Propulsion 2 | . . 1 . 1 Utility 3 | . . 1 1 1 Weapon 1 | . . . 1 . Parts Attached 79 | 1 3 14 28 33 Power 6 | . . 1 1 4 Engine 3 | . . 1 1 1 Core 3 | . . . . 3 Reactor . | . . . . . Propulsion 16 | . . 1 5 10 Treads 3 | . . . 2 1 Leg 11 | . . 1 3 7 Wheel 1 | . . . . 1 Hover 1 | . . . . 1 Flight . | . . . . . Utility 28 | 1 2 4 11 10 Device 14 | 1 1 1 4 7 Storage 4 | . 1 2 . 1 Processor 5 | . . 1 3 1 Hackware 1 | . . . 1 . Protection 4 | . . . 3 1 Artifact . | . . . . . Weapon 29 | . 1 8 11 9 Energy Gun 5 | . . . 3 2 Energy Cannon . | . . . . . Ballistic Gun 12 | . . 5 6 1 Ballistic Cannon 3 | . . . 2 1 Launcher 3 | . . 1 . 2 Special Weapon 4 | . 1 2 . 1 Impact Weapon . | . . . . . Slashing Weapon 2 | . . . . 2 Piercing Weapon . | . . . . . Special Melee Weapon . | . . . . . Unidentified Prototypes 3 | . . 1 1 1 Parts Lost 31 | . . . . 31 Power 4 | . . . . 4 Propulsion 12 | . . . . 12 Utility 6 | . . . . 6 Weapon 9 | . . . . 9 Highest Loss Streak 10 | . . . . 10 To Critical Strikes . | . . . . . Average Slot Usage (%) 93 | . 100 99 99 84 Engine 7 | . 14 11 9 1 Core 1 | . . . . 3 Treads 3 | . . . 3 6 Leg 22 | . 28 32 23 14 Device 9 | . 10 19 5 5 Storage 9 | . 17 11 9 7 Processor 10 | . . 2 14 16 Hackware 1 | . . . . 3 Protection 1 | . . . 6 1 Energy Gun 6 | . 14 5 6 3 Ballistic Gun 9 | . 13 9 14 5 Ballistic Cannon 3 | . . . 6 5 Special Weapon 1 | . . 5 . . Peak Build Rating 48 | 9 10 20 38 48 Average Rating 26 | 8 9 15 33 37 On Entrance 16 | 6 9 8 20 38 Naked Turns . | . . . . . Heaviest Build 66 | 12 15 35 46 66 Greatest Support 50 | 20 20 33 42 50 Greatest Overweight (x) 13 | . . 1 2 13 Average Overweight (x) . | . . . . 1 Largest Inventory Capacity 20 | 8 8 15 15 20 Average Capacity 13 | 8 8 8 15 18 Most Carried 20 | 7 8 15 15 20 Average Carried 12 | 6 7 8 14 16 Final Capacity 20 | 8 8 15 15 20 Final Carried 15 | 7 8 15 15 14 Class Distribution -------------------- 49% | Mutant 21% | Tank 17% | Skirmisher 4% | Scavenger-Skirmisher 3% | Scavenger-Mutant Dominant Class ---------------- Mutant | -10/Materials Mutant | -9/Materials Tank | -8/Materials Mutant | -7/Factory Resources | -11 -10 -9 -8 -7 ----------- Run | Yrd Mat Mat Mat Fac Matter Collected 2688 | 225 271 428 786 978 Remotely 44 | . . . . 44 Salvage Created 2926 | 106 146 216 1007 1451 Parts 177 | 10 8 13 49 97 Haulers Intercepted 5 | . . 1 3 1 Recyclers Shooed 2 | . . . . 2 Parts Field Recycled . | . . . . . Retrieved Matter . | . . . . . Parts Self-Destructed . | . . . . . Prevented . | . . . . . Kills | -11 -10 -9 -8 -7 ------- Run | Yrd Mat Mat Mat Fac Combat Hostiles Destroyed 50 | . 3 3 19 25 Guns 20 | . 3 3 12 2 Cannons 16 | . . . 7 9 AOE 14 | . . . . 14 Classes Destroyed 14 | 2 2 2 6 2 Worker 8 | . 1 . . 7 Builder 9 | . . . 1 8 Tunneler 3 | 2 . 1 . . Hauler 5 | . . 1 3 1 Recycler 9 | 1 . . 2 6 Operator 1 | . . . 1 . Watcher 2 | . . . 1 1 Swarmer 8 | . . . 4 4 Grunt 26 | . 3 1 10 12 Brawler 1 | . . . 1 . Sentry 6 | . . 2 3 1 Specialist 2 | . . . . 2 Hunter 2 | . . . 1 1 Programmer 5 | . . . . 5 Best Kill Streak 9 | 2 2 2 8 9 Combat Bots Only 7 | . 2 1 6 7 Max Kills in Single Turn 4 | 1 1 1 2 4 Gunslinging . | . . . . . Exploded 3 | . . . . 3 Melee . | . . . . . Uniques/NPCs Destroyed . | . . . . . Combat | -11 -10 -9 -8 -7 -------- Run | Yrd Mat Mat Mat Fac Hostile Shots Fired 320 | . 31 10 92 187 Missed 97 | . 7 2 31 57 Damage Taken 4340 | . 307 107 828 3098 Core 866 | . 23 32 85 726 Absorbed by Shields . | . . . . . Core Remaining (%) 91 | 100 90 92 84 . Volleys Fired 186 | 5 18 30 51 82 Largest 3 | 2 2 2 3 3 Hottest 134 | 60 100 100 134 134 Shots Fired 431 | 10 35 53 153 180 Gun 312 | 10 34 46 117 105 Cannon 96 | . . . 36 60 Launcher 13 | . . . . 13 Special 10 | . 1 7 . 2 Kinetic 283 | 5 17 26 117 118 Thermal 133 | 5 18 27 36 47 Explosive 13 | . . . . 13 Electromagnetic 2 | . . . . 2 Robot Hit Streak 10 | 5 4 8 9 10 Robot Miss Streak 7 | 1 1 5 7 6 Penetration Max 1 | . . . . 1 Secondary Targets 3 | . 1 . 2 . Max Gunslinging Chain 1 | . 1 . 1 . Shots Hit Robots 240 | 8 23 31 92 86 Core Hits 159 | 4 10 9 65 71 Critical Kills 1 | . . . 1 . Critical Parts Destroyed . | . . . . . Critical Strikes 18 | . . . 3 15 Burn 4 | . . . 2 2 Destroy 1 | . . . 1 . Blast 12 | . . . . 12 Sever 1 | . . . . 1 Melee Attacks 21 | . . . . 21 Impact . | . . . . . Slashing 21 | . . . . 21 Piercing . | . . . . . Sneak Attacks 6 | . . . . 6 Combat Hostiles . | . . . . . Follow-up Attacks . | . . . . . Damage Inflicted 6826 | 91 283 381 1816 4255 Guns 2954 | 91 283 381 1213 986 Cannons 1596 | . . . 603 993 Explosions 1724 | . . . . 1724 Melee 552 | . . . . 552 Ramming . | . . . . . Kinetic 3526 | 48 174 224 1496 1584 Thermal 1581 | 43 109 157 320 952 Explosive 1152 | . . . . 1152 Electromagnetic 15 | . . . . 15 Impact . | . . . . . Slashing 552 | . . . . 552 Piercing . | . . . . . Highest Corruption 6 | . . . . 6 Average Corruption 5 | . . . . 5 Corruption Purged . | . . . . . Corruption Blocked . | . . . . . Effects 14 | . . . . 14 Matter Fused 7 | . . . . 7 Energy Discharges 2 | . . . . 2 Parts Fused 1 | . . . . 1 Data Loss (minor) 2 | . . . . 2 Data Loss (major) 2 | . . . . 2 Overload Shots . | . . . . . Overflow Damage 588 | . . . . 588 Projectiles 56 | . . . . 56 Explosions 422 | . . . . 422 Melee 110 | . . . . 110 Knockbacks 14 | . . . 7 7 Impact . | . . . . . Kinetic 13 | . . . 7 6 Secondary 1 | . . . . 1 Self-Inflicted Damage 746 | . . . . 746 Shots 12 | . . . . 12 Rammed . | . . . . . Targets Rammed . | . . . . . Kicked . | . . . . . Crushed . | . . . . . Highest Temperature 375 | . 99 19 368 375 Average Temperature 82 | . 48 7 96 97 Received Heat Transfer 1416 | . 174 54 342 846 Effects 2 | . . . 2 . Shutdowns 1 | . . . 1 . Energy Bleed 1 | . . . 1 . Siege Activations . | . . . . . Robots Corrupted . | . . . . . Combat Hostiles . | . . . . . Parts Fried 1 | . . . . 1 Impact Corruptions 1 | . . . . 1 Robots Melted . | . . . . . Combat Hostiles . | . . . . . Parts Melted 1 | . . . 1 . Heat Transferred 2591 | 100 250 350 740 1151 Parts Sabotaged . | . . . . . Parts Stolen . | . . . . . Parts Stripped . | . . . . . Power Chain Reactions . | . . . . . Alert | -11 -10 -9 -8 -7 ------- Run | Yrd Mat Mat Mat Fac Peak Influence 672 | 15 66 130 539 672 Initial 245 | . 9 27 54 245 Average 228 | 9 24 49 257 400 Maximum Alert Level 2 | . . . 2 2 Low Security (%) 46 | 100 100 100 33 . Level 1 34 | . . . 44 62 Level 2 19 | . . . 21 37 Level 3 . | . . . . . Level 4 . | . . . . . Level 5 . | . . . . . High Security . | . . . . . Max Security . | . . . . . Squads Dispatched 13 | . . . 3 10 Investigation 2 | . . . . 2 Extermination 3 | . . . . 3 Reinforcement 8 | . . . 3 5 Assault . | . . . . . Garrison . | . . . . . Intercept . | . . . . . Searches Triggered . | . . . . . Construction Impeded 2 | . . . . 2 Haulers Reinforced 2 | . . . . 2 Active Scanning Responses . | . . . . . Cargo Convoy Interrupts 1 | . . . . 1 Stealth | -11 -10 -9 -8 -7 --------- Run | Yrd Mat Mat Mat Fac Distress Signals 8 | . 1 . 3 4 Communications Jammed . | . . . . . Distress Signals . | . . . . . Times Spotted 91 | . 7 5 30 49 Peak Tracking Total 14 | . 3 2 7 14 Tactical Retreats 3 | . . . 2 1 Traps | -11 -10 -9 -8 -7 ------- Run | Yrd Mat Mat Mat Fac Traps Triggered . | . . . . . Indirectly . | . . . . . Trap Hack Attempts . | . . . . . Triggered . | . . . . . Disarmed . | . . . . . Reprogrammed . | . . . . . Reused . | . . . . . Traps Extracted . | . . . . . Installed . | . . . . . Triggered . | . . . . . Machines | -11 -10 -9 -8 -7 ---------- Run | Yrd Mat Mat Mat Fac Machines Disabled 14 | . . . 1 13 Max in Single Turn 4 | . . . 1 4 Machines Repaired . | . . . . . Machines Dismantled . | . . . . . Machines Sabotaged . | . . . . . Overloaded Fab Kills . | . . . . . Hacking | -11 -10 -9 -8 -7 --------- Run | Yrd Mat Mat Mat Fac Machines Accessed 15 | . 2 3 4 6 Terminals 11 | . 2 2 4 3 Fabricators 2 | . . . . 2 Repair Stations . | . . . . . Recycling Units 1 | . . . . 1 Scanalyzers 1 | . . 1 . . Garrison Access . | . . . . . Total Hacks 28 | . 2 6 6 14 Successful 16 | . 2 4 3 7 Failed 12 | . . 2 3 7 Catastrophic 4 | . . 1 . 3 Database Lockouts . | . . . . . Manual 5 | . 1 2 2 . Terminals 20 | . 2 4 6 8 Fabricators 5 | . . . . 5 Repair Stations . | . . . . . Recycling Units 1 | . . . . 1 Scanalyzers 2 | . . 2 . . Garrison Access . | . . . . . Terminal Hacks 10 | . 2 2 3 3 Part Schematic 3 | . 1 . 1 1 Robot Schematic 2 | . . . . 2 Locate Traps 3 | . 1 1 1 . Hauler Manifests 1 | . . . 1 . Zone Layout 1 | . . 1 . . Fabricator Hacks 4 | . . . . 4 Load Schematic 2 | . . . . 2 Build 2 | . . . . 2 Repair Station Hacks . | . . . . . Recycling Unit Hacks . | . . . . . Scanalyzer 2 | . . 2 . . Insert Component 1 | . . 1 . . Analyze 1 | . . 1 . . Garrison Access Hacks . | . . . . . Unauthorized Hacks . | . . . . . Terminals . | . . . . . Fabricators . | . . . . . Repair Stations . | . . . . . Recycling Units . | . . . . . Scanalyzers . | . . . . . Garrison Access . | . . . . . Data Cores Recovered 1 | . . . 1 . Used 1 | . . . 1 . Hacking Detections 12 | . . 3 3 6 Full Trace Events 2 | . . . . 2 Feedback Events . | . . . . . Feedback Blocked . | . . . . . Robot Schematics Acquired 2 | . . . . 2 Robots Built . | . . . . . Authchips . | . . . . . Time . | . . . . . Total Robot Build Rating . | . . . . . Part Schematics Acquired 4 | . 1 1 1 1 Parts Built 2 | . . . . 2 Authchips . | . . . . . Time 146 | . . . . 146 Total Part Build Rating 6 | . . . . 6 Parts Repaired . | . . . . . Time . | . . . . . Parts Recycled . | . . . . . Recycled Matter . | . . . . . Retrieved Matter . | . . . . . Retrieved Components . | . . . . . Parts Scanalyzed 1 | . . 1 . . Part Schematics Acquired 1 | . . 1 . . Parts Damaged . | . . . . . Bothacking | -11 -10 -9 -8 -7 ------------ Run | Yrd Mat Mat Mat Fac Used RIF Installer . | . . . . . Robots Hacked . | . . . . . Non-combat . | . . . . . Combat . | . . . . . Robot Hacks Applied . | . . . . . Relay Couplers Released 3 | . . . . 3 Programmers 3 | . . . . 3 Fabnet Peak Effective % . | . . . . . Robots Rewired . | . . . . . Allies Hacked . | . . . . . Hacks Repelled . | . . . . . Allies | -11 -10 -9 -8 -7 -------- Run | Yrd Mat Mat Mat Fac Total Allies . | . . . . . Largest Group . | . . . . . Highest-Rated Group . | . . . . . Highest-Rated Ally . | . . . . . Total Orders . | . . . . . Ally Attacks . | . . . . . Total Damage . | . . . . . Kills . | . . . . . Allies Corrupted . | . . . . . Allies Melted . | . . . . . Intel | -11 -10 -9 -8 -7 ------- Run | Yrd Mat Mat Mat Fac Robot Analysis Total . | . . . . . Derelict Logs Recovered . | . . . . . Drone Launches . | . . . . . Drone Recoveries . | . . . . . Exploration | -11 -10 -9 -8 -7 ------------- Run | Yrd Mat Mat Mat Fac Turns Passed 3661 | 83 577 759 798 1444 Spaces Moved 1527 | 24 298 456 304 445 Core 13 | . . . . 13 Treads 310 | . . . 56 254 Legs 1164 | 24 298 456 248 138 Wheels 40 | . . . . 40 Hover . | . . . . . Flight . | . . . . . Fastest Speed 120 | 120 120 120 120 152 Average Speed 164 | 120 120 126 190 218 Slowest Speed 700 | 120 120 190 260 700 Overloaded Moves . | . . . . . Propulsion Burnouts . | . . . . . Robots Hopped . | . . . . . Cave-ins Triggered 1 | . . . . 1 Exploration Rate (%) 32 | 4 61 32 43 20 Regions Visited 4 Branch Regions . Pre-discovered Areas . | . . . . . Known Exits Taken . | . . . . . Unknown Exits Taken 4 | 1 1 1 1 . Scrap Searched . | . . . . . Spaces Dug 19 | . 1 7 . 11 Terrain Destroyed 164 | . 1 7 4 152 Melee 8 | . . . . 8 Projectile 28 | . 1 7 4 16 AOE 128 | . . . . 128 Terrain Rammed . | . . . . . Walls Destroyed . | . . . . . Machines Disabled . | . . . . . Actions | -11 -10 -9 -8 -7 --------- Run | Yrd Mat Mat Mat Fac Total 2266 | 68 482 571 417 728 Wait 376 | 36 151 51 9 129 Move 1523 | 23 297 455 303 445 Hop . | . . . . . Pick Up 40 | 2 7 12 7 12 Fast Attach 24 | 1 . 3 7 13 Attach 15 | . . 1 2 12 Detach 3 | . . . 1 2 Swap 40 | . 3 10 19 8 Drop 38 | 1 6 9 18 4 Fire 186 | 5 18 30 51 82 Melee 21 | . . . . 21 Ram . | . . . . . Kick . | . . . . . Crush . | . . . . . Escape Stasis . | . . . . . Rewire . | . . . . . Trap . | . . . . . Miscellaneous . | . . . . . Route ------- -11/Scrapyard -10/Materials -9/Materials -8/Materials -7/Factory History --------- Turn | Location | Event 2 | -11/Scrapyard | Discovered new exit (range 3) 84 | -11/Scrapyard | Entered Materials 301 | -10/Materials | Build established: Mutant 629 | -10/Materials | Discovered new exit (range 11) 661 | -10/Materials | Entered another Materials area 661 | -9/Materials | Evolved 2 slots: Propulsion x1, Utility x1 1192 | -9/Materials | Discovered new exit (range 16) 1420 | -9/Materials | Entered another Materials area 1420 | -8/Materials | Evolved 2 slots: Utility x1, Weapon x1 1864 | -8/Materials | Build established: Tank 2183 | -8/Materials | Discovered new exit (range 8) 2218 | -8/Materials | Entered Factory 2218 | -7/Factory | Evolved 2 slots: Propulsion x1, Utility x1 2980 | -7/Factory | Crushed by falling debris 3259 | -7/Factory | Destroyed 7 combat bots 3272 | -7/Factory | Lost 10 parts (1p4n2u3w) 3401 | -7/Factory | Fabricated VSS Leg (x2) 3404 | -7/Factory | Core integrity fell below 50% 3555 | -7/Factory | Cargo convoy interrupted 3616 | -7/Factory | Core integrity fell below 20% 3638 | -7/Factory | Lost 7 parts (1p4n1u1w) 3662 | -7/Factory | Destroyed self via exploding Power Conduit Last Messages --------------- 03662_ P-60 Hacker destroyed. 03662_ Minigun destroyed. 03662_ Destroyed Minigun. 03662_ Power Conduit explodes. 03662_ Destroyed Welding Torch. 03662_ Destroyed Lgt. Ion Engine. 03662_ U-05 Engineer destroyed. 03662_ Power Conduit explodes. 03662_ >> Machine Analyzer network decryption results: 03662_ Terminal x1 03662_ Destroyed Weapon Cycler. 03662_ Terminal disabled. 03662_ X-67 Chaingunner destroyed. 03662_ Kinecellerator destroyed. 03662_ Destroyed Kinecellerator. 03662_ Aluminum Leg destroyed. 03662_ Destroyed Aluminum Leg. 03662_ H-55 Commando destroyed. 03662_ Mic. Nuclear Core destroyed. 03662_ Destroyed Mic. Nuclear Core. Map ----- +----------------------------------------------------+ | "????????????????????????????????????????????????? | | ?????????????????????????????????""""????????????? | | "????????????????????????????????""""????????????? | | ?????????????????????????????????""""????????????? | | " ??????????????????????????????""""????????????? | | ????????????????#????????????????????????????? | | " ?????????????? #????????????????????????????? | | ????????????? #????????????????????????????? | | " ] #############+###??????"""??????????????????? | | #??????"""??????????????????? | | #??????"""??????????????????? | | ?# % #???????????????????????????? | | ?# #????+?"""??? #?????????????? | | ?# """" #?? #?"""?? #?????????????? | | ?# " " "F" ## #?"""? #?????????????? | | ?# " " #?? #?????????????? | | ?# " " #?""" #?????????????? | | ## " " +?""" #?????????????? | | ## " " ^ #?""" #?????????????? | | # " " # #?????????????? | | # " "^ ############# #?????????????? | | # " " ^ #???????##### ???????????????? | | # " " #??????## ; ?????????????????? | | # "%" % ####???# ;;;;##?????????????????? | | + [##%!;;##;;;;;;;;;#####?????????????? | | # g %%*=% @ #?????????????? | | # #########;;## "" #?????????????? | | # ####??#?????# [ T" #?????????????? | | ## ##????#?#???# #?????????????? | | ######???#??# #?????????????? | | #??????? [% r ???????????? | | #####???;;%* # ?????????? | | " + ????# ! #?? ???????? | | * ##???????# #???? ???????? | | % #???? ???#x h #?????????????? | | * ##???????# h #?????????????? | | ! ##???????# #?????????????? | | """"""" # ??????#####/########??"""????????? | | """"""" #?? ?????????x#?????????"""????????? | | """"""" #???????????? #?????????"""????????? | | """"""" + ??? ??????? #????????????????????? | | #????????????h#????????????????????? | | #????????????? ????????????????????? | | # ???????????? ????????????????????? | | #?"????????????????????????????????? | | ?? #?"????????????????????????????????? | | ? #??????????????????????????????????? | | ???? #??????????????????????????????????? | | ????? #??????????????????????????????????? | | ????????????????????????????????????????????? | +----------------------------------------------------+ Best States ------------- Heat Dissipation 53 Energy Generation 18 Energy Capacity 290 Matter Stores 459 Matter Capacity 500 Sight Range 20 Robot Scan Range 15 Terrain Scan Range 16 Terrain Scan Density 85 Armor Coverage 225 Evasion (%) 55 Recoil Reduction 2 Kinecelleration 30 Defensive Hacking 10 Item Schematics ----------------- Med. Storage Unit | -10/Materials | Hacked Hcp. Matter Pod | -9/Materials | Scanalyzed VSS Leg | -8/Materials | Hacked Phase Shifter | -7/Factory | Hacked Robot Schematics ------------------ L-41 Fighter | -7/Factory | Hacked W-25 Informer | -7/Factory | Hacked Fabricated ------------ VSS Leg | x2 | -7/Factory Alien Tech Used ----------------- None Achievements -------------- None Challenges ------------ None Game ------ Seed GaussBombardmentBeamcaster Manual? 0 Play Time 00:56:05 Cumulative 147.9 hours Start 2024.08.18 @ 22:34:32 End 2024.08.18 @ 23:30:16 Sessions 1 Manual Loads 0 Difficulty Rogue Special Mode None Game No. 263 Rogue 259 Adventurer 0 Explorer 4 Win Type - Total 0 Types 0/0/0/0/0/0/0/0/0 Lore% 19 Gallery% 45 Achievement% 34 Wizard Run 0 Options --------- Layout 1 ASCII 0 Keyboard 1 Movement Arrows Keybinds 0 Fullscreen 1 Font 32/Proggy Map View 130x35 Zoom Use 0% Tactical HUD 1 Map Filters NONE Filters NONE Steam 0 RUN: 3c7c8609-c05a-4e8d-84d6-af732676d77d